Cogmind - Beta 13 @@@ ROGUE MODE // 2024.04.07 @ 02:19:25 Player: Viddaric Result: Destroyed by G-34 Mercenary with Small Laser Performance ------------- Evolutions (0) 0 Regions Visited (1) 200 Robots Destroyed (11) 55 Value Destroyed (296) 296 Prototype IDs (0) 0 Alien Tech Used (0) 0 Bonus (0) 0 TOTAL SCORE: 551 Bonus ------- None Cogmind --------- Core Integrity 0/250 Matter 252/300 Energy 232/250 System Corruption 0% Temperature Warning (326) Movement Walking (120) Location -10/Materials Parts ------- > --- POWER (1) -------- Ion Engine > --- PROPULSION (2) --- Aluminum Leg Aluminum Leg > --- UTILITY (2) ------ Medium Storage Unit Targeting Computer > --- WEAPON (2) ------- Small Laser Mining Laser > --- INVENTORY (10) --- Light Ion Engine Light Nuclear Core Hover Unit High-capacity Battery (250) Weight Redist. System Grenade Launcher Grenade Launcher Grenade Launcher Datajack Peak State ------------ > --- POWER ------------ Ion Engine > --- PROPULSION ------- Wheel Wheel > --- UTILITY ---------- Medium Storage Unit Targeting Computer > --- WEAPON ----------- Medium Laser Light Assault Rifle > --- INVENTORY -------- Light Ion Engine Wheel Wheel Hover Unit Huge Storage Unit Weight Redist. System Grenade Launcher Datajack Mining Laser [Rating: 8] Favorites ----------- Power Ion Engine Engine Ion Engine Propulsion Wheel Leg Aluminum Leg Wheel Wheel Utility Targeting Computer Storage Medium Storage Unit Processor Targeting Computer Weapon Medium Laser Energy Gun Medium Laser Ballistic Gun Light Assault Rifle Launcher Grenade Launcher Special Weapon Mining Laser Special Melee Weapon Datajack Build | -11 -10 ------- Run | Yrd Mat Slots Evolved . | . . Power . | . . Propulsion . | . . Utility . | . . Weapon . | . . Parts Attached 32 | 6 26 Power 3 | 1 2 Engine 3 | 1 2 Core . | . . Reactor . | . . Propulsion 11 | 2 9 Treads . | . . Leg 2 | . 2 Wheel 9 | 2 7 Hover . | . . Flight . | . . Utility 3 | 1 2 Device . | . . Storage 2 | 1 1 Processor 1 | . 1 Hackware . | . . Protection . | . . Artifact . | . . Weapon 15 | 2 13 Energy Gun 6 | 1 5 Energy Cannon . | . . Ballistic Gun 4 | 1 3 Ballistic Cannon . | . . Launcher 1 | . 1 Special Weapon 1 | . 1 Impact Weapon . | . . Slashing Weapon . | . . Piercing Weapon . | . . Special Melee Weapon 3 | . 3 Unidentified Prototypes . | . . Parts Lost 5 | . 5 Power . | . . Propulsion 3 | . 3 Utility . | . . Weapon 2 | . 2 Highest Loss Streak 3 | . 3 To Critical Strikes . | . . Average Slot Usage (%) 94 | . 94 Engine 13 | . 13 Leg 8 | . 8 Wheel 18 | . 18 Storage 14 | . 14 Processor 12 | . 12 Energy Gun 15 | . 15 Ballistic Gun 4 | . 4 Special Weapon 2 | . 2 Special Melee Weapon 3 | . 3 Naked Turns . | . . Heaviest Build 19 | 13 19 Greatest Support 20 | 20 20 Greatest Overweight (x) 5 | . 5 Average Overweight (x) . | . . Largest Inventory Capacity 10 | 8 10 Average Capacity 9 | 7 9 Most Carried 10 | 2 10 Average Carried 7 | 1 8 Final Capacity 10 | 8 10 Final Carried 9 | 2 9 Class Distribution -------------------- 100% | Mutant Dominant Class ---------------- Mutant | -10/Materials Resources | -11 -10 ----------- Run | Yrd Mat Matter Collected 527 | 229 298 Remotely . | . . Salvage Created 344 | . 344 Parts 21 | . 21 Haulers Intercepted 1 | . 1 Recyclers Shooed . | . . Parts Field Recycled . | . . Retrieved Matter . | . . Parts Self-Destructed . | . . Prevented . | . . Kills | -11 -10 ------- Run | Yrd Mat Combat Hostiles Destroyed 10 | . 10 Guns 8 | . 8 Cannons 1 | . 1 AOE 1 | . 1 Classes Destroyed 3 | . 3 Hauler 1 | . 1 Swarmer 3 | . 3 Grunt 7 | . 7 Best Kill Streak 4 | . 4 Combat Bots Only 4 | . 4 Max Kills in Single Turn 1 | . 1 Gunslinging . | . . Exploded 1 | . 1 Melee . | . . Uniques/NPCs Destroyed . | . . Combat | -11 -10 -------- Run | Yrd Mat Hostile Shots Fired 84 | . 84 Missed 20 | . 20 Damage Taken 742 | . 742 Core 258 | . 258 Absorbed by Shields . | . . Regen/Repaired (Parts) 18 | . 18 Core Remaining (%) 100 | 100 . Volleys Fired 44 | . 44 Largest 2 | . 2 Hottest 140 | . 140 Shots Fired 77 | . 77 Gun 68 | . 68 Cannon . | . . Launcher 2 | . 2 Special 7 | . 7 Kinetic 14 | . 14 Thermal 61 | . 61 Explosive 2 | . 2 Electromagnetic . | . . Robot Hit Streak 8 | . 8 Robot Miss Streak 3 | . 3 Penetration Max . | . . Secondary Targets 3 | . 3 Max Gunslinging Chain 1 | . 1 Shots Hit Robots 53 | . 53 Core Hits 20 | . 20 Critical Kills . | . . Critical Parts Destroyed . | . . Critical Strikes 4 | . 4 Burn 4 | . 4 Melee Attacks 4 | . 4 Impact . | . . Slashing . | . . Piercing . | . . Sneak Attacks 3 | . 3 Combat Hostiles . | . . Follow-up Attacks . | . . Damage Inflicted 701 | . 701 Guns 485 | . 485 Cannons . | . . Explosions 120 | . 120 Melee . | . . Ramming . | . . Kinetic 49 | . 49 Thermal 532 | . 532 Explosive 120 | . 120 Electromagnetic . | . . Impact . | . . Slashing . | . . Piercing . | . . Highest Corruption . | . . Average Corruption . | . . Corruption Purged . | . . Corruption Blocked . | . . Overload Shots . | . . Overflow Damage . | . . Projectiles . | . . Explosions . | . . Melee . | . . Knockbacks . | . . Impact . | . . Kinetic . | . . Secondary . | . . Self-Inflicted Damage . | . . Shots . | . . Rammed . | . . Targets Rammed . | . . Kicked . | . . Crushed . | . . Highest Temperature 480 | . 480 Average Temperature 137 | . 137 Received Heat Transfer 363 | . 363 Effects 4 | . 4 Shutdowns 1 | . 1 Energy Bleed 1 | . 1 Matter Decay 1 | . 1 Damage (minor) 1 | . 1 Siege Activations . | . . Robots Corrupted . | . . Combat Hostiles . | . . Parts Fried . | . . Impact Corruptions . | . . Robots Melted . | . . Combat Hostiles . | . . Parts Melted 5 | . 5 Heat Transferred 1744 | . 1744 Parts Sabotaged . | . . Parts Stolen . | . . Parts Stripped . | . . Power Chain Reactions . | . . Alert | -11 -10 ------- Run | Yrd Mat Peak Influence 217 | . 217 Initial . | . . Average 61 | . 74 Maximum Alert Level 1 | . 1 Low Security (%) 85 | 100 82 Level 1 14 | . 17 Level 2 . | . . Level 3 . | . . Level 4 . | . . Level 5 . | . . High Security . | . . Max Security . | . . Squads Dispatched 3 | . 3 Investigation 2 | . 2 Extermination . | . . Reinforcement 1 | . 1 Assault . | . . Garrison . | . . Intercept . | . . Searches Triggered . | . . Construction Impeded . | . . Haulers Reinforced . | . . Active Scanning Responses . | . . Cargo Convoy Interrupts . | . . Stealth | -11 -10 --------- Run | Yrd Mat Distress Signals 1 | . 1 Communications Jammed . | . . Distress Signals . | . . Times Spotted 18 | . 18 Peak Tracking Total 6 | . 6 Tactical Retreats 1 | . 1 Traps | -11 -10 ------- Run | Yrd Mat Traps Triggered 5 | . 5 Indirectly . | . . Trap Hack Attempts . | . . Triggered . | . . Disarmed . | . . Reprogrammed 1 | . 1 Reused . | . . Traps Extracted . | . . Installed . | . . Triggered . | . . Machines | -11 -10 ---------- Run | Yrd Mat Machines Disabled . | . . Max in Single Turn . | . . Machines Repaired . | . . Machines Dismantled . | . . Machines Sabotaged . | . . Overloaded Fab Kills . | . . Hacking | -11 -10 --------- Run | Yrd Mat Machines Accessed 7 | . 7 Terminals 4 | . 4 Fabricators . | . . Repair Stations 1 | . 1 Recycling Units 2 | . 2 Scanalyzers . | . . Garrison Access . | . . Total Hacks 20 | . 20 Successful 9 | . 9 Failed 11 | . 11 Catastrophic 1 | . 1 Database Lockouts . | . . Manual . | . . Terminals 12 | . 12 Fabricators . | . . Repair Stations 3 | . 3 Recycling Units 5 | . 5 Scanalyzers . | . . Garrison Access . | . . Terminal Hacks 5 | . 5 Robot Analysis 1 | . 1 Reprogram Traps 1 | . 1 Dispatch Records 1 | . 1 Investigation Status 1 | . 1 Zone Layout 1 | . 1 Fabricator Hacks . | . . Repair Station Hacks 2 | . 2 Scan Component 1 | . 1 Repair 1 | . 1 Recycling Unit Hacks 2 | . 2 Report Inventory 2 | . 2 Scanalyzer . | . . Garrison Access Hacks . | . . Unauthorized Hacks . | . . Terminals . | . . Fabricators . | . . Repair Stations . | . . Recycling Units . | . . Scanalyzers . | . . Garrison Access . | . . Data Cores Recovered . | . . Used . | . . Hacking Detections 6 | . 6 Full Trace Events 2 | . 2 Feedback Events . | . . Feedback Blocked . | . . Robot Schematics Acquired . | . . Robots Built . | . . Authchips . | . . Time . | . . Total Robot Build Rating . | . . Part Schematics Acquired . | . . Parts Built . | . . Authchips . | . . Time . | . . Total Part Build Rating . | . . Parts Repaired 1 | . 1 Time 38 | . 38 Parts Recycled . | . . Recycled Matter . | . . Retrieved Matter . | . . Retrieved Components . | . . Parts Scanalyzed . | . . Part Schematics Acquired . | . . Parts Damaged . | . . Bothacking | -11 -10 ------------ Run | Yrd Mat Used RIF Installer . | . . Robots Hacked 3 | . 3 Non-combat 3 | . 3 Combat . | . . Robot Hacks Applied 3 | . 3 parse_system 1 | . 1 no_distress 2 | . 2 Relay Couplers Released . | . . Fabnet Peak Effective % . | . . Robots Rewired . | . . Allies Hacked . | . . Hacks Repelled . | . . Allies | -11 -10 -------- Run | Yrd Mat Total Allies . | . . Largest Group . | . . Highest-Rated Group . | . . Highest-Rated Ally . | . . Total Orders . | . . Ally Attacks . | . . Total Damage . | . . Kills . | . . Allies Corrupted . | . . Allies Melted . | . . Intel | -11 -10 ------- Run | Yrd Mat Robot Analysis Total 1 | . 1 Derelict Logs Recovered . | . . Drone Launches . | . . Drone Recoveries . | . . Exploration | -11 -10 ------------- Run | Yrd Mat Turns Passed 934 | 166 768 Spaces Moved 682 | 56 626 Core 7 | 5 2 Treads . | . . Legs 136 | . 136 Wheels 539 | 51 488 Hover . | . . Flight . | . . Fastest Speed 50 | 50 80 Average Speed 89 | 77 90 Slowest Speed 300 | 80 300 Overloaded Moves . | . . Propulsion Burnouts . | . . Robots Hopped . | . . Cave-ins Triggered . | . . Exploration Rate (%) 43 | 3 84 Regions Visited 1 Branch Regions . Pre-discovered Areas . | . . Known Exits Taken . | . . Unknown Exits Taken 1 | 1 . Scrap Searched . | . . Spaces Dug . | . . Terrain Destroyed 20 | . 20 Melee . | . . Projectile 1 | . 1 AOE 19 | . 19 Terrain Rammed . | . . Walls Destroyed . | . . Machines Disabled . | . . Actions | -11 -10 --------- Run | Yrd Mat Total 908 | 175 733 Wait 119 | 110 9 Move 681 | 55 626 Hop . | . . Pick Up 20 | 3 17 Fast Attach 19 | 6 13 Attach 4 | . 4 Detach . | . . Swap 9 | . 9 Drop 8 | 1 7 Fire 44 | . 44 Melee 4 | . 4 Ram . | . . Kick . | . . Crush . | . . Escape Stasis . | . . Rewire . | . . Trap . | . . Miscellaneous . | . . Route ------- -11/Scrapyard -10/Materials (discovered 4 exits: [*Mat x2] / [*Min x2]) History --------- Turn | Location | Event 10 | -11/Scrapyard | Discovered new exit (range 16) 167 | -11/Scrapyard | Entered Materials 279 | -10/Materials | Discovered new exit (range 6) 304 | -10/Materials | Discovered new exit (range 13) 313 | -10/Materials | Build established: Mutant 389 | -10/Materials | Discovered new exit (range 10) 432 | -10/Materials | Core integrity fell below 50% 649 | -10/Materials | Discovered new exit (range 3) 714 | -10/Materials | Lost 3 parts (1n2w) 900 | -10/Materials | Repaired Imp. Heat Sink 924 | -10/Materials | Core integrity fell below 20% 935 | -10/Materials | Destroyed by G-34 Mercenary with Small Laser Last Messages --------------- Acquired Grenade Launcher. K-01 Serf cleans the Fusion Modulator. K-01 Serf cleans the Hadron Collector. Connecting with Repair Station... >>Scan(Imp. Heat Sink) Scanning Imp. Heat Sink... Ready to Repair: Imp. Heat Sink Rating: 3 Time: 38 >>Repair Repairing Imp. Heat Sink... ETC: 38 ALERT: Suspicious activity at Repair Station M001. Dispatching Investigation squad. K-01 Serf cleans the Hadron Collector. Repair station completes Imp. Heat Sink repairs. G-34 Mercenary destroyed. K-01 Serf collects debris. K-01 Serf cleans the Hadron Collector. Map ----- +----------------------------------------------------+ | ????????# #???# """ # """ # ## ||#????? | | ????????# #???# """ # """ !# ## ""#????? | | ????????# #???# # # ## "#????? | | ????????# #???# #! # ### ####????? | | ????????# #???############### ###?# #???????? | | ????????# #?????????????????# #???# #???????? | | ????????# #?????????????????# #???# #???????? | | ????????# #?????????????????# #??## %##??????? | | ????????# #?????????????????# #??# ##+###?? | | ????????#/#?????????????????# #??# #?? | | ???????? #?????????????????# #??# #?? | | ???????? ??????????????????# #??# """ !#?? | | ???????? ????????????????### #??# """ !!#?? | | ???????? ????????????????# #??# """ ### | | ????????" ????????????????# #??# | | ????????" ????????????????# #??# | | ????????? ????????????????# #??# """ | | ????????? ????????????????# #??# """ ### | | ????#?????????????????????# #### """ #?? | | ???? ################## /?? | | ???# m #?? | | ????? T #?? | | ???# #### #####?? | | ??????????#########k#;######+##### #?????? | | ?????????????#### =g*## #! !#?????? | | ?????????????#""" """"@## """ ##!!!!##?????? | | ?????????????#"R! """" ##] """ #######??????? | | ?????????????#""" """"g## """ ""#????????????? | | ?????????????#### ## ""#????????????? | | ????????????????# ## T"#????????????? | | ????????????????######### [ ""#????????????? | | ????????????????????????# ]]] ""#????????????? | | ????????????????????????# ]] #????????????? | | ????????????????????????##########????????????? | | ??????????????????????????????????????????????? | | ??????????????????????????????????????????????? | | ??????????????????????????????????????????????? | | | | | | | | | | | | | | | | | | | | | | | | | | | +----------------------------------------------------+ Best States ------------- Heat Dissipation 25 Energy Generation 10 Energy Capacity 250 Matter Stores 300 Matter Capacity 300 Sight Range 16 Terrain Scan Density 10 Evasion (%) 55 Targeting Accuracy 5 Item Schematics ----------------- None Robot Schematics ------------------ None Fabricated ------------ Nothing Alien Tech Used ----------------- None Achievements -------------- None Challenges ------------ None Game ------ Seed MicroMappingLauncher Manual? 0 Play Time 00:29:19 Cumulative 14.7 hours Start 2024.04.07 @ 01:49:14 End 2024.04.07 @ 02:19:25 Sessions 1 Manual Loads 0 Difficulty Rogue Special Mode None Game No. 6 Rogue 6 Adventurer 0 Explorer 0 Win Type - Total 0 Types 0/0/0/0/0/0/0/0/0 Lore% 9 Gallery% 21 Achievement% 17 Wizard Run 0 Options --------- Layout 1 ASCII 0 Keyboard 0 Movement Mouse Keybinds 0 Fullscreen 2 Font 24/Cog Map View 50x35 Zoom Use 0% Tactical HUD 0 Map Filters NONE Filters NONE Steam 1 RUN: c166cb44-fe65-4c50-b2b7-76e27660be2d